fUSD/lending_fUSD_20250814
["ID","MTS","AMOUNT","RATE_DAILY","PERIOD"]
[379215002,1755190251568,-400.0,0.00027397,2]
[379215003,1755190251578,-1668.54,0.00027397,2]
[379215004,1755190251589,-400.0,0.00027397,2]
[379215005,1755190251599,-400.0,0.00027397,2]
[379215006,1755190251609,-1253.46,0.00027397,2]
[379215007,1755190251619,-824.38,0.00027397,2]
[379215008,1755190251628,-824.38,0.00027397,2]
[379215009,1755190251637,-493.35,0.00027397,2]
[379215010,1755190251646,-824.38,0.00027397,2]
[379215011,1755190251655,-824.38,0.00027397,2]
[379215012,1755190251664,-3497.55037592,0.00027397,2]
[379215013,1755190253134,-447.21264065,0.00027397,2]
[379215014,1755190253403,-40.39698343,0.00027397,2]
[379215015,1755190253424,-824.38,0.00027397,2]
[379215016,1755190253439,-824.38,0.00027397,2]
[379215017,1755190253449,-824.38,0.00027397,2]
[379215018,1755190253459,-653.36,0.00027397,2]
[379215019,1755190253470,-586.65,0.00027397,2]
[379215020,1755190253480,-824.38,0.00027397,2]
[379215021,1755190253489,-2502.9,0.00027397,2]
[379215022,1755190253499,-400.0,0.00027397,2]
[379215023,1755190253509,-752.57301657,0.00027397,2]
[379215024,1755190255004,-71.80698343,0.00027397,2]
[379215025,1755190255015,-400.0,0.00027397,2]
[379215026,1755190255025,-824.38,0.00027397,2]
[379215027,1755190255034,-400.0,0.00027397,2]
[379215028,1755190255044,-824.38,0.00027397,2]
[379215029,1755190255053,-824.38,0.00027397,2]
[379215030,1755190255063,-824.38,0.00027397,2]
[379215031,1755190255072,-824.38,0.00027397,2]
[379215032,1755190255081,-824.38,0.00027397,2]
[379215033,1755190255090,-824.38,0.00027397,2]
[379215034,1755190255099,-400.0,0.00027397,2]
[379215035,1755190255109,-500.0,0.00027397,2]
[379215036,1755190255118,-500.0,0.00027397,2]
[379215037,1755190255127,-500.0,0.00027397,2]
[379215038,1755190255137,-400.0,0.00027397,2]
[379215039,1755190255147,-500.0,0.00027397,2]
[379215040,1755190255156,-2008.38,0.00027397,2]
[379215041,1755190255166,-500.0,0.00027397,2]
[379215042,1755190255175,-500.0,0.00027397,2]
[379215043,1755190255185,-582.42403318,0.00027397,2]
[379215044,1755190255195,-400.0,0.00027397,2]
[379215045,1755190255204,-440.62,0.00027397,2]
[379215046,1755190255213,-400.0,0.00027397,2]
[379215047,1755190255226,-400.0,0.00027397,2]
[379215048,1755190255235,-824.38,0.00027397,2]
[379215049,1755190255244,-400.0,0.00027397,2]
[379215050,1755190255253,-987.84,0.00027397,2]
[379215051,1755190255262,-1494.66,0.00027397,2]
[379215052,1755190255271,-861.45,0.00027397,2]
[379215053,1755190255281,-844.61,0.00027397,2]
[379215054,1755190255290,-400.0,0.00027397,2]
[379215055,1755190255300,-555.33,0.00027397,2]
[379215056,1755190255319,-1060.73,0.00027397,2]
[379215057,1755190255339,-2706.34,0.00027397,2]
[379215058,1755190255357,-2119.27,0.00027397,2]
[379215059,1755190255378,-400.0,0.00027397,2]
[379215060,1755190255395,-400.0,0.00027397,2]
[379215061,1755190255411,-1400.91,0.00027397,2]
[379215062,1755190255430,-885.91,0.00027397,2]
[379215063,1755190255449,-467.93,0.00027397,2]
[379215064,1755190255468,-400.0,0.00027397,2]
[379215065,1755190255486,-2626.1,0.00027397,2]
[379215066,1755190255505,-400.0,0.00027397,2]
[379215067,1755190255525,-400.0,0.00027397,2]
[379215068,1755190255539,-424.06,0.00027397,2]
[379215069,1755190255560,-400.0,0.00027397,2]
[379215070,1755190255573,-400.0,0.00027397,2]
[379215071,1755190255590,-767.08,0.00027397,2]
[379215072,1755190255606,-154.02091792,0.00027397,2]
[379215073,1755190255618,-1072.65,0.00027397,2]
[379215074,1755190255644,-400.0,0.00027397,2]
[379215075,1755190255659,-4759.98,0.00027397,2]
[379215076,1755190255674,-2048.12,0.00027397,2]
[379215077,1755190255688,-3780.08,0.00027397,2]
[379215078,1755190255703,-405.02,0.00027397,2]
[379215079,1755190255717,-605.48,0.00027397,2]
[379215080,1755190255732,-602.37,0.00027397,2]
[379215081,1755190255753,-400.0,0.00027397,2]
[379215082,1755190255773,-400.0,0.00027397,2]
[379215083,1755190255792,-400.0,0.00027397,2]
[379215084,1755190255811,-400.0,0.00027397,2]
[379215085,1755190255828,-400.0,0.00027397,2]
[379215086,1755190255845,-1081.18,0.00027397,2]
[379215087,1755190255862,-617.05,0.00027397,2]
[379215088,1755190255879,-1046.5,0.00027397,2]
[379215089,1755190255896,-400.0,0.00027397,2]
[379215090,1755190255911,-400.0,0.00027397,2]
[379215091,1755190255928,-4732.8,0.00027397,2]
[379215092,1755190255943,-400.0,0.00027397,2]
[379215093,1755190255959,-3461.9,0.00027397,2]
[379215094,1755190255974,-197.60455942,0.00027397,2]
[379215095,1755190255990,-493.67,0.00027397,2]
[379215096,1755190256005,-1816.02909118,0.00027397,2]
[379215097,1755190256033,-18.81090882,0.00027397,2]
[379215098,1755190256047,-2826.43,0.00027397,2]
[379215099,1755190256064,-400.0,0.00027397,2]
[379215100,1755190256080,-488.34,0.00027397,2]
[379215101,1755190256096,-400.0,0.00027397,2]
[379215102,1755190256111,-769.11,0.00027397,2]
[379215103,1755190256126,-400.0,0.00027397,2]
[379215104,1755190256141,-2725.83,0.00027397,2]
[379215105,1755190256156,-1980.41,0.00027397,2]
[379215106,1755190256171,-400.0,0.00027397,2]
[379215107,1755190256185,-400.0,0.00027397,2]
[379215108,1755190256201,-400.0,0.00027397,2]
[379215109,1755190256217,-857.65,0.00027397,2]
[379215110,1755190256232,-400.0,0.00027397,2]
[379215111,1755190256247,-1442.82,0.00027397,2]
[379215112,1755190256262,-464.52,0.00027397,2]
[379215113,1755190256286,-5650.37,0.00027397,2]
[379215114,1755190256301,-5313.32,0.00027397,2]
[379215115,1755190256316,-400.0,0.00027397,2]
[379215116,1755190256332,-934.9,0.00027397,2]
[379215117,1755190256348,-400.0,0.00027397,2]
[379215118,1755190256364,-923.96,0.00027397,2]
[379215119,1755190256380,-503.77,0.00027397,2]
[379215120,1755190256395,-400.0,0.00027397,2]
[379215121,1755190256416,-686.56,0.00027397,2]
[379215122,1755190256432,-1076.81,0.00027397,2]
[379215123,1755190256447,-400.0,0.00027397,2]
[379215124,1755190256461,-400.0,0.00027397,2]
[379215125,1755190256477,-2736.5,0.00027397,2]
[379215126,1755190256492,-1147.95,0.00027397,2]
[379215127,1755190256506,-455.01,0.00027397,2]
[379215128,1755190256523,-400.0,0.00027397,2]
[379215129,1755190256539,-1171.23,0.00027397,2]
[379215130,1755190256552,-2911.88,0.00027397,2]
[379215131,1755190256569,-1181.06,0.00027397,2]
[379215132,1755190256583,-500.0,0.00027397,2]
[379215133,1755190256599,-1289.6,0.00027397,2]
[379215134,1755190256615,-500.0,0.00027397,2]
[379215135,1755190256628,-454.8,0.00027397,2]
[379215136,1755190256645,-500.0,0.00027397,2]
[379215137,1755190256660,-1040.77,0.00027397,2]
[379215138,1755190256675,-500.0,0.00027397,2]
[379215139,1755190256689,-500.0,0.00027397,2]
[379215140,1755190256704,-500.0,0.00027397,2]
[379215141,1755190256719,-500.0,0.00027397,2]
[379215142,1755190256733,-500.0,0.00027397,2]
[379215143,1755190256749,-500.0,0.00027397,2]
[379215144,1755190256763,-500.0,0.00027397,2]
[379215145,1755190256778,-500.0,0.00027397,2]
[379215146,1755190256792,-500.0,0.00027397,2]
[379215147,1755190256807,-500.0,0.00027397,2]
[379215148,1755190256821,-500.0,0.00027397,2]
[379215149,1755190256835,-1324.38,0.00027397,2]
[379215150,1755190256849,-272.82054563,0.00027397,2]
[379215151,1755190257166,-227.17945437,0.00027397,2]
[379215152,1755190257181,-500.0,0.00027397,2]
[379215153,1755190257195,-500.0,0.00027397,2]
[379215154,1755190257210,-1400.75,0.00027397,2]
[379215155,1755190257226,-4919.22,0.00027397,2]
[379215156,1755190257240,-742.94,0.00027397,2]
[379215157,1755190257255,-400.0,0.00027397,2]
[379215158,1755190257269,-400.0,0.00027397,2]
[379215159,1755190257283,-556.51,0.00027397,2]
[379215160,1755190257297,-400.0,0.00027397,2]
[379215161,1755190257312,-400.0,0.00027397,2]
[379215162,1755190257327,-400.0,0.00027397,2]
[379215163,1755190257341,-3370.58,0.00027397,2]
[379215164,1755190257356,-400.0,0.00027397,2]
[379215165,1755190257371,-400.0,0.00027397,2]
[379215166,1755190257385,-2259.72,0.00027397,2]
[379215167,1755190257399,-400.0,0.00027397,2]
[379215168,1755190257413,-400.0,0.00027397,2]
[379215169,1755190257428,-400.0,0.00027397,2]
[379215170,1755190257442,-400.0,0.00027397,2]
[379215171,1755190257456,-1282.06,0.00027397,2]
[379215172,1755190257470,-400.0,0.00027397,2]
[379215173,1755190257484,-400.0,0.00027397,2]
[379215174,1755190257499,-400.0,0.00027397,2]
[379215175,1755190257518,-400.0,0.00027397,2]
[379215176,1755190257533,-400.0,0.00027397,2]
[379215177,1755190257548,-400.0,0.00027397,2]
[379215178,1755190257561,-2878.73,0.00027397,2]
[379215179,1755190257576,-400.0,0.00027397,2]
[379215180,1755190257592,-400.0,0.00027397,2]
[379215181,1755190257607,-400.0,0.00027397,2]
[379215182,1755190257621,-400.0,0.00027397,2]
[379215183,1755190257635,-400.0,0.00027397,2]
[379215184,1755190257649,-400.0,0.00027397,2]
[379215185,1755190257662,-400.0,0.00027397,2]
[379215186,1755190257677,-631.04,0.00027397,2]
[379215187,1755190257690,-905.78,0.00027397,2]
[379215188,1755190257704,-3620.17,0.00027397,2]
[379215189,1755190257719,-1897.45,0.00027397,2]
[379215190,1755190257733,-400.0,0.00027397,2]
[379215191,1755190257746,-3371.49,0.00027397,2]
[379215192,1755190257760,-400.0,0.00027397,2]
[379215193,1755190257774,-400.0,0.00027397,2]
[379215194,1755190257788,-400.0,0.00027397,2]
[379215195,1755190257801,-562.24,0.00027397,2]
[379215196,1755190257815,-708.27,0.00027397,2]
[379215197,1755190257829,-550.42,0.00027397,2]
[379215198,1755190257842,-400.0,0.00027397,2]
[379215199,1755190257856,-3932.02,0.00027397,2]
[379215200,1755190257870,-400.0,0.00027397,2]
[379215201,1755190257884,-400.0,0.00027397,2]
[379215202,1755190257897,-689.19,0.00027397,2]
[379215203,1755190257911,-5196.73,0.00027397,2]
[379215204,1755190257924,-1714.92,0.00027397,2]
[379215205,1755190257937,-400.0,0.00027397,2]
[379215206,1755190257951,-400.0,0.00027397,2]
[379215207,1755190257964,-400.0,0.00027397,2]
[379215208,1755190257979,-400.0,0.00027397,2]
[379215209,1755190257994,-400.0,0.00027397,2]
[379215210,1755190258007,-400.0,0.00027397,2]
[379215211,1755190258021,-400.0,0.00027397,2]
[379215212,1755190258035,-670.71,0.00027397,2]
[379215213,1755190258048,-400.0,0.00027397,2]
[379215214,1755190258061,-786.32,0.00027397,2]
[379215215,1755190258076,-400.0,0.00027397,2]
[379215216,1755190258086,-400.0,0.00027397,2]
[379215217,1755190258095,-1449.3,0.00027397,2]
[379215218,1755190258104,-400.0,0.00027397,2]
[379215219,1755190258113,-400.0,0.00027397,2]
[379215220,1755190258122,-1999.76,0.00027397,2]
[379215221,1755190258132,-400.0,0.00027397,2]
[379215222,1755190258142,-786.82,0.00027397,2]
[379215223,1755190258151,-400.0,0.00027397,2]
[379215224,1755190258161,-788.11,0.00027397,2]
[379215225,1755190258171,-915.32,0.00027397,2]
[379215226,1755190258181,-400.0,0.00027397,2]
[379215227,1755190258191,-3218.7,0.00027397,2]
[379215228,1755190258200,-400.0,0.00027397,2]
[379215229,1755190258209,-400.0,0.00027397,2]
[379215230,1755190258220,-400.0,0.00027397,2]
[379215231,1755190258229,-1377.17,0.00027397,2]
[379215232,1755190258239,-4332.01,0.00027397,2]
[379215233,1755190258249,-400.0,0.00027397,2]
[379215234,1755190258258,-475.03,0.00027397,2]
[379215235,1755190258267,-195.57347621,0.00027397,2]
[379215236,1755190258277,-234.77945611,0.00027397,2]
[379215237,1755190258286,-400.0,0.00027397,2]
[379215238,1755190258296,-3750.86,0.00027397,2]
[379215239,1755190258307,-400.0,0.00027397,2]
[379215240,1755190258316,-441.93,0.00027397,2]
[379215241,1755190258326,-848.22,0.00027397,2]
[379215242,1755190258335,-2504.49,0.00027397,2]
[379215243,1755190258346,-5782.41,0.00027397,2]
[379215244,1755190258355,-400.0,0.00027397,2]
[379215245,1755190258364,-4150.94,0.00027397,2]
[379215246,1755190258374,-3897.46,0.00027397,2]
[379215247,1755190258384,-400.0,0.00027397,2]
[379215248,1755190258394,-708.86,0.00027397,2]
[379215249,1755190258404,-400.0,0.00027397,2]
[379215250,1755190258414,-500.0,0.00027397,10]
[379215251,1755190258423,-1126.81,0.00027397,2]
[379215252,1755190258433,-400.0,0.00027397,2]
[379215253,1755190258443,-400.0,0.00027397,2]
[379215254,1755190258452,-400.0,0.00027397,2]
[379215255,1755190258461,-400.0,0.00027397,2]
[379215256,1755190258472,-1243.72,0.00027397,2]
[379215257,1755190258482,-400.0,0.00027397,2]
[379215258,1755190258491,-400.0,0.00027397,2]
[379215259,1755190259269,-1331.48,0.00027397,2]
[379215260,1755190259294,-451.86,0.00027397,2]
[379215261,1755190259330,-400.0,0.00027397,2]
[379215262,1755190259358,-2006.03,0.00027397,2]
[379215263,1755190259389,-400.0,0.00027397,2]
[379215264,1755190259400,-1057.19,0.00027397,2]
[379215265,1755190259409,-538.94,0.00027397,2]
[379215266,1755190259418,-400.0,0.00027397,2]
[379215267,1755190259427,-3282.42,0.00027397,2]
[379215268,1755190259437,-2848.55,0.00027397,2]
[379215269,1755190259446,-406.87050882,0.00027397,2]
[379215270,1755190259455,-1411.75,0.00027397,2]
[379215271,1755190259464,-4976.07,0.00027397,2]
[379215272,1755190259475,-400.0,0.00027397,2]
[379215273,1755190259484,-400.0,0.00027397,2]
[379215274,1755190259493,-400.0,0.00027397,2]
[379215275,1755190259503,-2393.75,0.00027397,2]
[379215276,1755190259515,-1001.67,0.00027397,2]
[379215277,1755190259525,-400.0,0.00027397,2]
[379215278,1755190259534,-411.62,0.00027397,2]
[379215279,1755190259543,-400.0,0.00027397,2]
[379215280,1755190259552,-400.0,0.00027397,2]
[379215281,1755190259562,-400.0,0.00027397,2]
[379215282,1755190259573,-5498.44,0.00027397,2]
[379215283,1755190259582,-400.0,0.00027397,2]
[379215284,1755190259592,-400.0,0.00027397,2]
[379215285,1755190259601,-400.0,0.00027397,2]
[379215286,1755190259611,-400.0,0.00027397,2]
[379215287,1755190259620,-1389.16,0.00027397,2]
[379215288,1755190259629,-403.54614457,0.00027397,2]
[379215289,1755190259638,-400.0,0.00027397,2]
[379215290,1755190259648,-2184.27,0.00027397,2]
[379215291,1755190259657,-4062.9,0.00027397,2]
[379215292,1755190259666,-400.0,0.00027397,2]
[379215293,1755190259675,-400.0,0.00027397,2]
[379215294,1755190259684,-2591.53,0.00027397,2]
[379215295,1755190259694,-400.0,0.00027397,2]
[379215296,1755190259703,-3673.19,0.00027397,2]
[379215297,1755190259712,-958.94,0.00027397,2]
[379215298,1755190259721,-3377.5,0.00027397,2]
[379215299,1755190259730,-897.28,0.00027397,2]
[379215300,1755190259739,-1976.29,0.00027397,2]
[379215301,1755190259748,-400.0,0.00027397,2]
[379215302,1755190259757,-710.41,0.00027397,2]
[379215303,1755190259767,-518.37,0.00027397,2]
[379215304,1755190259776,-400.0,0.00027397,2]
[379215305,1755190259785,-400.0,0.00027397,2]
[379215306,1755190259794,-400.0,0.00027397,2]
[379215307,1755190259803,-3633.1,0.00027397,2]
[379215308,1755190259812,-508.72,0.00027397,2]
[379215309,1755190259821,-435.38,0.00027397,2]
[379215310,1755190259830,-400.0,0.00027397,2]
[379215311,1755190259839,-400.0,0.00027397,2]
[379215312,1755190259848,-2107.74,0.00027397,2]
[379215313,1755190259857,-400.0,0.00027397,2]
[379215314,1755190259867,-403.92007972,0.00027397,2]
[379215315,1755190259876,-400.0,0.00027397,2]
[379215316,1755190259885,-4028.27,0.00027397,2]
[379215317,1755190259894,-400.0,0.00027397,2]
[379215318,1755190259903,-426.48,0.00027397,2]
[379215319,1755190259912,-4214.26,0.00027397,2]
[379215320,1755190259922,-400.0,0.00027397,2]
[379215321,1755190259931,-405.38,0.00027397,2]
[379215322,1755190259940,-697.5,0.00027397,2]
[379215323,1755190259950,-400.0,0.00027397,2]
[379215324,1755190259959,-400.0,0.00027397,2]
[379215325,1755190259968,-1127.74,0.00027397,2]
[379215326,1755190259978,-1012.82,0.00027397,2]
[379215327,1755190259987,-4675.4,0.00027397,2]
[379215328,1755190259997,-529.77,0.00027397,2]
[379215329,1755190260006,-400.0,0.00027397,2]
[379215330,1755190260016,-3476.5,0.00027397,2]
[379215331,1755190260025,-4258.82,0.00027397,2]
[379215332,1755190260034,-5701.83,0.00027397,2]
[379215333,1755190260044,-400.0,0.00027397,2]
[379215334,1755190260054,-686.78,0.00027397,2]
[379215335,1755190260064,-400.0,0.00027397,2]
[379215336,1755190260073,-2289.94,0.00027397,2]
[379215337,1755190260082,-538.09,0.00027397,2]
[379215338,1755190260091,-1246.72,0.00027397,2]
[379215339,1755190260100,-1246.72,0.00027397,2]
[379215340,1755190260110,-400.0,0.00027397,2]
[379215341,1755190260119,-1246.72,0.00027397,2]
[379215342,1755190260128,-1246.72,0.00027397,2]
[379215343,1755190260138,-1246.72,0.00027397,2]
[379215344,1755190260148,-1246.72,0.00027397,2]
[379215345,1755190260158,-1246.72,0.00027397,2]
[379215346,1755190260167,-1246.72,0.00027397,2]
[379215347,1755190260178,-1246.72,0.00027397,2]
[379215348,1755190260189,-1246.72,0.00027397,2]
[379215349,1755190260199,-400.0,0.00027397,2]
[379215350,1755190260210,-1246.72,0.00027397,2]
[379215351,1755190260221,-1246.72,0.00027397,2]
[379215352,1755190260232,-1246.72,0.00027397,2]
[379215353,1755190260242,-400.0,0.00027397,2]
[379215354,1755190260252,-2441.77,0.00027397,2]
[379215355,1755190260262,-1246.72,0.00027397,2]
[379215356,1755190260272,-400.0,0.00027397,2]
[379215357,1755190260282,-175.41693055,0.00027397,2]
[379215358,1755190260292,-1246.72,0.00027397,2]
[379215359,1755190260303,-1246.72,0.00027397,2]
[379215360,1755190260313,-1246.72,0.00027397,2]
[379215361,1755190260323,-1246.72,0.00027397,2]
[379215362,1755190260332,-400.0,0.00027397,2]
[379215363,1755190260342,-1246.72,0.00027397,2]
[379215364,1755190260352,-1246.72,0.00027397,2]
[379215365,1755190260361,-1246.72,0.00027397,2]
[379215366,1755190260371,-1246.72,0.00027397,2]
[379215367,1755190260380,-400.0,0.00027397,2]
[379215368,1755190260390,-410.78896627,0.00027397,2]
[379215369,1755190260400,-400.0,0.00027397,2]
[379215370,1755190260409,-2494.13,0.00027397,2]
[379215371,1755190260418,-403.63037774,0.00027397,2]
[379215372,1755190260429,-622.34,0.00027397,2]
[379215373,1755190260439,-400.0,0.00027397,2]
[379215374,1755190260448,-541.88,0.00027397,2]
[379215375,1755190260458,-1784.51,0.00027397,2]
[379215376,1755190260468,-400.0,0.00027397,2]
[379215377,1755190260479,-1843.23,0.00027397,2]
[379215378,1755190260490,-1246.72,0.00027397,2]
[379215379,1755190260500,-1246.75820614,0.00027397,2]
[379215380,1755190260510,-1556.76,0.00027397,2]
[379215381,1755190260522,-646.88,0.00027397,2]
[379215382,1755190260532,-2443.67,0.00027397,2]
[379215383,1755190260541,-3357.14,0.00027397,2]
[379215384,1755190260551,-653.68,0.00027397,2]
[379215385,1755190260562,-703.74,0.00027397,2]
[379215386,1755190260571,-1871.26,0.00027397,2]
[379215387,1755190260581,-2188.057884,0.00027397,7]
[379215388,1755190260591,-5620.38,0.00027397,2]
[379215389,1755190260601,-400.0,0.00027397,2]
[379215390,1755190260611,-400.0,0.00027397,2]
[379215391,1755190260621,-400.0,0.00027397,2]
[379215392,1755190260630,-400.0,0.00027397,2]
[379215393,1755190260640,-400.0,0.00027397,2]
[379215394,1755190260649,-1090.32,0.00027397,2]
[379215395,1755190260659,-891.36,0.00027397,2]
[379215396,1755190260668,-400.0,0.00027397,2]
[379215397,1755190260678,-1055.32,0.00027397,2]
[379215398,1755190260687,-503.56,0.00027397,2]
[379215399,1755190260696,-400.0,0.00027397,2]
[379215400,1755190260706,-1224.08,0.00027397,2]
[379215401,1755190260715,-2188.057884,0.00027397,7]
[379215402,1755190260728,-3089.13,0.00027397,2]
[379215403,1755190260737,-400.0,0.00027397,2]
[379215404,1755190260747,-2016.11,0.00027397,2]
[379215405,1755190260756,-400.0,0.00027397,2]
[379215406,1755190260765,-1043.25,0.00027397,2]
[379215407,1755190260774,-1803.62,0.00027397,2]
[379215408,1755190260784,-917.33,0.00027397,2]
[379215409,1755190260793,-2269.19,0.00027397,2]
[379215410,1755190260803,-400.0,0.00027397,2]
[379215411,1755190260812,-854.5,0.00027397,2]
[379215412,1755190260822,-918.18,0.00027397,2]
[379215413,1755190260831,-400.0,0.00027397,2]
[379215414,1755190260840,-596.48,0.00027397,2]
[379215415,1755190260850,-1282.28,0.00027397,2]
[379215416,1755190260859,-400.0,0.00027397,2]
[379215417,1755190260869,-400.0,0.00027397,2]
[379215418,1755190260878,-400.0,0.00027397,2]
[379215419,1755190260888,-3293.06,0.00027397,2]
[379215420,1755190260898,-1218.01,0.00027397,2]
[379215421,1755190260907,-158.06569364,0.00027397,2]
[379215422,1755190260917,-598.49,0.00027397,2]
[379215423,1755190260926,-400.0,0.00027397,2]
[379215424,1755190260935,-525.49,0.00027397,2]
[379215425,1755190260945,-400.0,0.00027397,2]
[379215426,1755190260954,-598.49,0.00027397,2]
[379215427,1755190260964,-598.49,0.00027397,2]
[379215428,1755190260975,-2653.1,0.00027397,2]
[379215429,1755190260985,-598.49,0.00027397,2]
[379215430,1755190260995,-1160.58,0.00027397,2]
[379215431,1755190261004,-4163.97,0.00027397,2]
[379215432,1755190261013,-598.49,0.00027397,2]
[379215433,1755190261022,-598.49,0.00027397,2]
[379215434,1755190261031,-818.7,0.00027397,2]
[379215435,1755190261040,-598.49,0.00027397,2]
[379215436,1755190261050,-400.0,0.00027397,2]
[379215437,1755190261060,-598.49,0.00027397,2]
[379215438,1755190261069,-598.49,0.00027397,2]
[379215439,1755190261080,-598.49,0.00027397,2]
[379215440,1755190261089,-598.49,0.00027397,2]
[379215441,1755190261099,-598.49,0.00027397,2]
[379215442,1755190261108,-1139.37,0.00027397,2]
[379215443,1755190261118,-400.0,0.00027397,2]
[379215444,1755190261127,-598.49,0.00027397,2]
[379215445,1755190261136,-598.49,0.00027397,2]
[379215446,1755190261145,-598.49,0.00027397,2]
[379215447,1755190261154,-598.49,0.00027397,2]
[379215448,1755190261164,-598.49,0.00027397,2]
[379215449,1755190261173,-598.49,0.00027397,2]
[379215450,1755190261182,-598.49,0.00027397,2]
[379215451,1755190261191,-1160.49,0.00027397,2]
[379215452,1755190261200,-416.81499118,0.00027397,2]
[379215453,1755190261209,-598.49,0.00027397,2]
[379215454,1755190261221,-598.49,0.00027397,2]
[379215455,1755190261230,-598.49,0.00027397,2]
[379215456,1755190261240,-598.49,0.00027397,2]
[379215457,1755190261249,-418.17453414,0.00027397,2]
[379215458,1755190261260,-400.0,0.00027397,2]
[379215459,1755190261270,-400.0,0.00027397,2]
[379215460,1755190261280,-400.0,0.00027397,2]
[379215461,1755190261289,-400.0,0.00027397,2]
[379215462,1755190261298,-400.0,0.00027397,2]
[379215463,1755190261307,-400.0,0.00027397,2]
[379215464,1755190261318,-2964.72,0.00027397,2]
[379215465,1755190261327,-858.3,0.00027397,2]
[379215466,1755190261336,-1997.7,0.00027397,2]
[379215467,1755190261346,-1170.15,0.00027397,2]
[379215468,1755190261355,-400.0,0.00027397,2]
[379215469,1755190261366,-400.0,0.00027397,2]
[379215470,1755190261375,-659.66,0.00027397,2]
[379215471,1755190261384,-400.0,0.00027397,2]
[379215472,1755190261393,-598.4970193,0.00027397,2]
[379215473,1755190261402,-400.0,0.00027397,2]
[379215474,1755190261412,-400.0,0.00027397,2]
[379215475,1755190261421,-400.0,0.00027397,2]
[379215476,1755190261430,-3071.58,0.00027397,2]
[379215477,1755190261439,-2110.71,0.00027397,2]
[379215478,1755190261449,-400.0,0.00027397,2]
[379215479,1755190261458,-908.27,0.00027397,2]
[379215480,1755190261467,-400.0,0.00027397,2]
[379215481,1755190261479,-484.89,0.00027397,2]
[379215482,1755190261488,-1067.2,0.00027397,2]
[379215483,1755190261498,-1851.39,0.00027397,2]
[379215484,1755190261508,-1814.57,0.00027397,2]
[379215485,1755190261521,-3290.38,0.00027397,2]
[379215486,1755190261532,-400.0,0.00027397,2]
[379215487,1755190261541,-400.0,0.00027397,2]
[379215488,1755190261551,-516.61,0.00027397,2]
[379215489,1755190261562,-164.60691344,0.00027397,2]
[379215490,1755190261571,-400.0,0.00027397,2]
[379215491,1755190261580,-500.0,0.00027397,2]
[379215492,1755190261590,-500.0,0.00027397,2]
[379215493,1755190261601,-500.0,0.00027397,2]
[379215494,1755190261610,-400.0,0.00027397,2]
[379215495,1755190261620,-500.0,0.00027397,2]
[379215496,1755190261629,-500.0,0.00027397,2]
[379215497,1755190261639,-400.0,0.00027397,2]
[379215498,1755190261648,-400.0,0.00027397,2]
[379215499,1755190261657,-400.0,0.00027397,2]
[379215500,1755190261667,-4477.38,0.00027397,2]
[379215501,1755190261677,-400.0,0.00027397,2]